Cogmind - Beta 15 @@@ ROGUE MODE // 2025.08.01 @ 13:27:23 Player: P9H Result: Destroyed by G-47 Trooper with Particle Gun Performance ------------- Evolutions (2) 1000 Regions Visited (7) 1400 Robots Destroyed (49) 245 Value Destroyed (1538) 1538 Prototype IDs (23) 460 Alien Tech Used (0) 0 Bonus (300) 300 TOTAL SCORE: 4943 Bonus ------- Aligned with FarCom 300 Cogmind --------- Core Integrity 0/550 Matter 18/300 Energy 93/100 System Corruption 0% Temperature Cool (9) Movement Core (50) Location -8/Materials Parts ------- > --- POWER (1) -------- (None) > --- PROPULSION (3) --- (None) > --- UTILITY (5) ------ (None) > --- WEAPON (2) ------- (None) > --- INVENTORY (5) ---- Micro Nuclear Core Cargo Storage Unit Plasma Cannon Minigun Peak State ------------ > --- POWER ------------ Improved Ion Engine > --- PROPULSION ------- Light Treads Compact Wheel > --- UTILITY ---------- Cargo Storage Unit Signal Interpreter 0b10 Alert Chip Improved Targeting Computer > --- WEAPON ----------- Plasma Cannon Power Maul > --- INVENTORY -------- Improved Ion Engine Micro Nuclear Core Micro Nuclear Core Micro Nuclear Core Micro Nuclear Core Light Angular Momentum Engine Heat Sink Improved Heat Sink Advanced Heat Sink High-capacity Storage Unit Large Matter Pod Signal Interpreter ECM Suite Utility Shielding Hardened Light Armor Plating Hardened Light Armor Plating Tractor Beam Tractor Beam EM Shotgun Plasma Cannon Plasma Cannon Plasma Cannon Assault Rifle Light Assault Rifle Heavy Assault Rifle Minigun Assault Cannon Grenade Launcher Rocket Launcher Power Maul [Rating: 30] Favorites ----------- Power Improved Ion Engine Engine Improved Ion Engine Power Core Micro Nuclear Core Propulsion Light Treads Treads Light Treads Wheel Compact Wheel Utility Cargo Storage Unit Device Sensor Array Storage Cargo Storage Unit Processor Signal Interpreter Weapon Shotgun Energy Gun Particle Gun Energy Cannon Plasma Cannon Ballistic Gun Shotgun Ballistic Cannon Assault Cannon Launcher Rocket Launcher Impact Weapon Power Maul Build | -11 -10 -10 -9 -9 -9 -8 -8 ------- Run | Yrd Mat Min Mat Min Exi Min Mat Slots Evolved 4 | . . . 2 . . . 2 Power . | . . . . . . . . Propulsion 1 | . . . . . . . 1 Utility 3 | . . . 2 . . . 1 Weapon . | . . . . . . . . Parts Attached 43 | 5 10 2 7 2 . 4 13 Power 7 | 1 1 . 1 1 . 1 2 Engine 5 | 1 1 . 1 1 . 1 . Core 2 | . . . . . . . 2 Reactor . | . . . . . . . . Propulsion 7 | 2 2 . 2 . . . 1 Treads 5 | . 2 . 2 . . . 1 Leg . | . . . . . . . . Wheel 2 | 2 . . . . . . . Hover . | . . . . . . . . Flight . | . . . . . . . . Utility 9 | . 4 . 2 1 . . 2 Device 2 | . 1 . . . . . 1 Storage 3 | . 2 . 1 . . . . Processor 4 | . 1 . 1 1 . . 1 Hackware . | . . . . . . . . Protection . | . . . . . . . . Artifact . | . . . . . . . . Weapon 20 | 2 3 2 2 . . 3 8 Energy Gun 4 | 1 1 . . . . 1 1 Energy Cannon 1 | . . . . . . . 1 Ballistic Gun 10 | 1 2 2 2 . . 2 1 Ballistic Cannon 2 | . . . . . . . 2 Launcher 2 | . . . . . . . 2 Special Weapon . | . . . . . . . . Impact Weapon 1 | . . . . . . . 1 Slashing Weapon . | . . . . . . . . Piercing Weapon . | . . . . . . . . Special Melee Weapon . | . . . . . . . . Unidentified Prototypes . | . . . . . . . . Parts Lost 24 | . . . 5 2 . 7 10 Power 5 | . . . 1 1 . 1 2 Propulsion 6 | . . . 2 . . 2 2 Utility 2 | . . . . 1 . . 1 Weapon 11 | . . . 2 . . 4 5 Highest Loss Streak 10 | . . . 3 2 . 7 10 To Critical Strikes . | . . . . . . . . Average Backups 25 | 3 14 19 23 28 30 29 29 Power 3 | 1 1 3 3 3 3 2 5 Propulsion 1 | 1 1 1 1 2 2 1 . Utility 11 | . 5 6 8 10 13 15 12 Weapon 10 | 1 5 9 10 12 12 9 11 Tool/Special . | . . . . . . . . Unused Backups 39 | . 4 . . . 1 . 34 Power 7 | . 1 . . . . . 6 Propulsion . | . . . . . . . . Utility 21 | . 2 . . . 1 . 18 Weapon 11 | . 1 . . . . . 10 Tool/Special . | . . . . . . . . Average Slot Usage (%) 84 | . 94 100 86 87 88 76 79 Engine 10 | . 12 14 10 10 11 10 8 Treads 14 | . 21 28 21 22 22 . 8 Wheel 4 | . 4 . . . . 10 8 Storage 13 | . 13 14 22 11 11 11 8 Processor 19 | . 13 14 11 22 22 22 26 Energy Gun 4 | . 11 . . . . 10 . Ballistic Gun 15 | . 14 28 20 21 22 11 5 Peak Build Rating 30 | 5 12 13 16 17 18 18 30 Average Rating 17 | 3 9 13 15 16 17 16 28 On Entrance 12 | . 5 12 13 16 17 18 17 Naked Turns 8 | . . . . . . . 8 Heaviest Build 193 | 9 52 53 193 153 153 153 159 Greatest Support 40 | 32 40 40 40 40 40 16 16 Greatest Overweight (x) 13 | . 13 1 9 3 3 9 9 Average Overweight (x) 5 | . 1 1 4 3 3 9 8 Largest Inventory Capacity 30 | 5 20 20 30 30 30 30 30 Average Capacity 28 | 5 19 20 30 30 30 30 29 Most Carried 30 | 5 20 20 30 30 30 30 30 Average Carried 25 | 3 14 20 23 28 29 29 29 Final Capacity 30 | 5 20 20 30 30 30 30 5 Final Carried 30 | 5 20 20 30 30 30 30 5 Class Distribution -------------------- 83% | Hauler-Mutant 16% | Mutant Dominant Class ---------------- Mutant | -10/Materials Mutant | -10/Mines Hauler-Mutant | -9/Materials Hauler-Mutant | -9/Mines Hauler-Mutant | -9/Exiles Hauler-Mutant | -8/Mines Hauler-Mutant | -8/Materials Resources | -11 -10 -10 -9 -9 -9 -8 -8 ----------- Run | Yrd Mat Min Mat Min Exi Min Mat Matter Collected 1270 | 229 257 . 400 104 . 195 85 Remotely . | . . . . . . . . Salvage Created 1764 | . 602 . 722 99 . 160 181 Parts 101 | . 32 . 40 3 . 11 15 Haulers Intercepted . | . . . . . . . . Recyclers Shooed 1 | . 1 . . . . . . Parts Field Recycled . | . . . . . . . . Retrieved Matter . | . . . . . . . . Parts Self-Destructed . | . . . . . . . . Prevented . | . . . . . . . . Kills | -11 -10 -10 -9 -9 -9 -8 -8 ------- Run | Yrd Mat Min Mat Min Exi Min Mat Combat Hostiles Destroyed 35 | . 8 . 15 3 . 5 4 Guns 31 | . 8 . 15 3 . 5 . Cannons 4 | . . . . . . . 4 Classes Destroyed 11 | . 5 . 2 . . 1 3 Worker 2 | . 1 . . . . . 1 Builder 1 | . . . . . . . 1 Tunneler 1 | . . . 1 . . . . Recycler 4 | . 2 . 2 . . . . Operator 3 | . 1 . . . . . 2 Watcher 3 | . 1 . . . . . 2 Swarmer 3 | . . . . . . 3 . Grunt 25 | . 8 . 12 3 . 2 . Sentry 4 | . . . 3 . . . 1 Specialist 2 | . . . . . . . 2 Hunter 1 | . . . . . . . 1 Best Kill Streak 9 | . 4 . 4 3 . 3 9 Combat Bots Only 4 | . 3 . 4 3 . 3 4 Max Kills in Single Turn 3 | . 1 . 2 1 . 1 3 Gunslinging . | . . . . . . . . Exploded . | . . . . . . . . Melee . | . . . . . . . . Uniques/NPCs Destroyed . | . . . . . . . . Combat | -11 -10 -10 -9 -9 -9 -8 -8 -------- Run | Yrd Mat Min Mat Min Exi Min Mat Hostile Shots Fired 326 | . 44 . 85 26 . 62 109 Missed 82 | . 10 . 25 6 . 10 31 Hits 244 | . 34 . 60 20 . 52 78 Projectile 244 | . 34 . 60 20 . 52 78 Critical Strikes 9 | . . . 2 . . 3 4 Damage Taken 4375 | . 455 . 790 262 . 781 2087 Core 951 | . 115 . 93 28 . 151 564 Absorbed by Shields . | . . . . . . . . Core Remaining (%) 62 | 100 . 54 . . . 32 . Volleys Fired 135 | . 43 . 40 9 . 25 18 Largest 2 | . 2 . 2 2 . 2 2 Hottest 117 | . 63 . 46 63 . 88 117 Shots Fired 256 | . 81 . 80 18 . 46 31 Gun 230 | . 81 . 80 18 . 46 5 Cannon 20 | . . . . . . . 20 Launcher 6 | . . . . . . . 6 Special . | . . . . . . . . Kinetic 215 | . 60 . 80 16 . 37 22 Thermal 12 | . . . . . . 9 3 Explosive 6 | . . . . . . . 6 Electromagnetic 23 | . 21 . . 2 . . . Robot Hit Streak 35 | . 12 . 8 31 . 35 12 Robot Miss Streak 3 | . 2 . 3 1 . 2 3 Penetration Max . | . . . . . . . . Secondary Targets 3 | . . . . 1 . 2 . Max Gunslinging Chain 1 | . . . . 1 . 1 . Shots Hit Robots 189 | . 57 . 63 16 . 36 17 Core Hits 104 | . 23 . 37 7 . 11 26 Critical Kills . | . . . . . . . . Critical Parts Destroyed . | . . . . . . . . Critical Strikes 2 | . 1 . . . . . 1 Blast 1 | . . . . . . . 1 Corrupt 1 | . 1 . . . . . . Melee Attacks 19 | . . . . . . . 19 Impact 19 | . . . . . . . 19 Slashing . | . . . . . . . . Piercing . | . . . . . . . . Sneak Attacks . | . . . . . . . . Combat Hostiles . | . . . . . . . . Follow-up Attacks . | . . . . . . . . Damage Inflicted 3431 | . 741 . 945 310 . 551 884 Guns 2540 | . 699 . 945 310 . 551 35 Cannons 384 | . . . . . . . 384 Explosions 507 | . 42 . . . . . 465 Melee . | . . . . . . . . Ramming . | . . . . . . . . Kinetic 2476 | . 430 . 945 295 . 440 366 Thermal 290 | . 42 . . . . 111 137 Explosive 381 | . . . . . . . 381 Electromagnetic 284 | . 269 . . 15 . . . Impact . | . . . . . . . . Slashing . | . . . . . . . . Piercing . | . . . . . . . . Highest Corruption . | . . . . . . . . Average Corruption . | . . . . . . . . Corruption Purged . | . . . . . . . . Corruption Blocked . | . . . . . . . . Overload Shots . | . . . . . . . . Overflow Damage 87 | . . . . . . . 87 Projectiles . | . . . . . . . . Explosions 87 | . . . . . . . 87 Melee . | . . . . . . . . Knockbacks 4 | . . . . . . . 4 Impact . | . . . . . . . . Kinetic 3 | . . . . . . . 3 Secondary 1 | . . . . . . . 1 Self-Inflicted Damage 138 | . 39 . . . . . 99 Shots 4 | . 1 . . . . . 3 Rammed . | . . . . . . . . Targets Rammed . | . . . . . . . . Kicked . | . . . . . . . . Crushed . | . . . . . . . . Highest Temperature 147 | . 88 . 22 28 . 147 73 Average Temperature 36 | . 33 . 9 10 . 57 25 Received Heat Transfer 1557 | . 237 . 402 144 . 414 360 Siege Activations . | . . . . . . . . Martial Activations . | . . . . . . . . Shielding Activations . | . . . . . . . . Robots Disrupted . | . . . . . . . . Combat Hostiles . | . . . . . . . . Robots Corrupted . | . . . . . . . . Combat Hostiles . | . . . . . . . . Parts Fried 1 | . 1 . . . . . . Impact Corruptions . | . . . . . . . . Robots Melted . | . . . . . . . . Combat Hostiles . | . . . . . . . . Parts Melted . | . . . . . . . . Heat Transferred 459 | . 50 . . . . 259 150 Parts Sabotaged . | . . . . . . . . Parts Stolen . | . . . . . . . . Parts Stripped . | . . . . . . . . Power Chain Reactions 1 | . 1 . . . . . . Alert | -11 -10 -10 -9 -9 -9 -8 -8 ------- Run | Yrd Mat Min Mat Min Exi Min Mat Maximum Alert Level . | . . . . . . . . Low Security (%) 100 | 100 100 100 100 100 . 100 100 Level 1 . | . . . . . . . . Level 2 . | . . . . . . . . Level 3 . | . . . . . . . . Level 4 . | . . . . . . . . Level 5 . | . . . . . . . . High Security . | . . . . . . . . Max Security . | . . . . . . . . Peak Influence 144 | . 73 14 144 50 . 68 128 Initial 25 | . . 14 1 19 . . 25 Average 14 | . 16 9 49 2 . 1 4 Influence Increases 1078 | . 246 . 410 70 . 120 232 Destroy 0b10 Robot/C 684 | . 160 . 300 60 . 100 64 Destroy 0b10 Robot/NC 64 | . 25 . 15 . . . 24 Destroy Leader 180 | . 42 . 80 10 . 20 28 Disable Machine 48 | . . . . . . . 48 Destroy Structure 72 | . 4 . . . . . 68 Lose Combat Pursuer 30 | . 15 . 15 . . . . Influence Decreases 983 | . 209 33 364 120 . 54 203 Entered New Map 98 | . . 23 3 31 . . 41 Time Decay 696 | . 209 10 311 70 . 34 62 Lost Part 189 | . . . 50 19 . 20 100 Squads Dispatched 11 | . 2 . 2 . . . 7 Investigation 1 | . 1 . . . . . . Extermination . | . . . . . . . . Reinforcement 8 | . 1 . 2 . . . 5 Assault . | . . . . . . . . Garrison 2 | . . . . . . . 2 Intercept . | . . . . . . . . Searches Triggered . | . . . . . . . . Construction Impeded . | . . . . . . . . Haulers Reinforced . | . . . . . . . . Active Scanning Responses . | . . . . . . . . Cargo Convoy Interrupts . | . . . . . . . . Stealth | -11 -10 -10 -9 -9 -9 -8 -8 --------- Run | Yrd Mat Min Mat Min Exi Min Mat Distress Signals 6 | . 1 . 4 . . . 1 Communications Jammed . | . . . . . . . . Distress Signals . | . . . . . . . . Times Spotted 66 | . 17 . 23 3 . 6 17 Peak Tracking Total 6 | . 3 . 4 3 . 3 6 Tactical Retreats 2 | . 1 . 1 . . . . Traps | -11 -10 -10 -9 -9 -9 -8 -8 ------- Run | Yrd Mat Min Mat Min Exi Min Mat Traps Triggered 3 | . 2 . 1 . . . . Indirectly . | . . . . . . . . Trap Hack Attempts . | . . . . . . . . Triggered . | . . . . . . . . Disarmed . | . . . . . . . . Reprogrammed . | . . . . . . . . Reused . | . . . . . . . . Traps Extracted . | . . . . . . . . Installed . | . . . . . . . . Triggered . | . . . . . . . . Machines | -11 -10 -10 -9 -9 -9 -8 -8 ---------- Run | Yrd Mat Min Mat Min Exi Min Mat Machines Disabled 4 | . . . . . . . 4 Max in Single Turn 2 | . . . . . . . 2 Machines Repaired . | . . . . . . . . Machines Dismantled . | . . . . . . . . Machines Sabotaged . | . . . . . . . . Overloaded Fab Kills . | . . . . . . . . Hacking | -11 -10 -10 -9 -9 -9 -8 -8 --------- Run | Yrd Mat Min Mat Min Exi Min Mat Machines Accessed 5 | . 2 . . . 1 . 2 Terminals 4 | . 2 . . . . . 2 Fabricators . | . . . . . . . . Repair Stations . | . . . . . . . . Recycling Units . | . . . . . . . . Scanalyzers . | . . . . . . . . Garrison Access . | . . . . . . . . Total Hacks 8 | . 4 . . . 1 . 3 Successful 1 | . . . . . 1 . . Failed 7 | . 4 . . . . . 3 Catastrophic 4 | . 2 . . . . . 2 Database Lockouts . | . . . . . . . . Manual 9 | . 4 . . . 1 . 4 Terminals 7 | . 4 . . . . . 3 Fabricators . | . . . . . . . . Repair Stations . | . . . . . . . . Recycling Units . | . . . . . . . . Scanalyzers . | . . . . . . . . Garrison Access . | . . . . . . . . Terminal Hacks 1 | . . . . . 1 . . Proto ID Catalog 1 | . . . . . 1 . . Fabricator Hacks . | . . . . . . . . Repair Station Hacks . | . . . . . . . . Recycling Unit Hacks . | . . . . . . . . Scanalyzer . | . . . . . . . . Garrison Access Hacks . | . . . . . . . . Unauthorized Hacks . | . . . . . . . . Terminals . | . . . . . . . . Fabricators . | . . . . . . . . Repair Stations . | . . . . . . . . Recycling Units . | . . . . . . . . Scanalyzers . | . . . . . . . . Garrison Access . | . . . . . . . . Data Cores Recovered . | . . . . . . . . Used . | . . . . . . . . Hacking Detections 3 | . 2 . . . . . 1 Full Trace Events 1 | . 1 . . . . . . Feedback Events . | . . . . . . . . Feedback Blocked . | . . . . . . . . Robot Schematics Acquired . | . . . . . . . . Robots Built . | . . . . . . . . Authchips . | . . . . . . . . Time . | . . . . . . . . Total Robot Build Rating . | . . . . . . . . Part Schematics Acquired . | . . . . . . . . Parts Built . | . . . . . . . . Authchips . | . . . . . . . . Time . | . . . . . . . . Total Part Build Rating . | . . . . . . . . Parts Repaired . | . . . . . . . . Time . | . . . . . . . . Parts Recycled . | . . . . . . . . Recycled Matter . | . . . . . . . . Retrieved Matter . | . . . . . . . . Retrieved Components . | . . . . . . . . Parts Scanalyzed . | . . . . . . . . Part Schematics Acquired . | . . . . . . . . Parts Damaged . | . . . . . . . . Bothacking | -11 -10 -10 -9 -9 -9 -8 -8 ------------ Run | Yrd Mat Min Mat Min Exi Min Mat Used RIF Installer . | . . . . . . . . Robots Hacked . | . . . . . . . . Non-combat . | . . . . . . . . Combat . | . . . . . . . . Robot Hacks Applied . | . . . . . . . . Relay Couplers Released . | . . . . . . . . Fabnet Peak Effective % . | . . . . . . . . Robots Rewired . | . . . . . . . . Allies Hacked . | . . . . . . . . Hacks Repelled . | . . . . . . . . Allies | -11 -10 -10 -9 -9 -9 -8 -8 -------- Run | Yrd Mat Min Mat Min Exi Min Mat Total Allies . | . . . . . . . . Largest Group . | . . . . . . . . Highest-Rated Group . | . . . . . . . . Highest-Rated Ally . | . . . . . . . . Total Orders . | . . . . . . . . Ally Attacks . | . . . . . . . . Total Damage . | . . . . . . . . Kills . | . . . . . . . . Allies Corrupted . | . . . . . . . . Allies Melted . | . . . . . . . . Intel | -11 -10 -10 -9 -9 -9 -8 -8 ------- Run | Yrd Mat Min Mat Min Exi Min Mat Active Infowar (turns) 16 | . 15 . . . . . 1 Sensors 15 | . 15 . . . . . . ECM 1 | . . . . . . . 1 Robot Analysis Total . | . . . . . . . . Derelict Logs Recovered . | . . . . . . . . Drone Launches . | . . . . . . . . Drone Recoveries . | . . . . . . . . Exploration | -11 -10 -10 -9 -9 -9 -8 -8 ------------- Run | Yrd Mat Min Mat Min Exi Min Mat Turns Passed 9187 | 53 1473 37 1625 1412 882 2306 1399 Spaces Moved 2640 | 43 557 15 295 339 221 779 391 Core 44 | 10 15 . . . . . 19 Treads 1262 | . 392 15 295 339 221 . . Legs . | . . . . . . . . Wheels 1334 | 33 150 . . . . 779 372 Hover . | . . . . . . . . Flight . | . . . . . . . . Fastest Speed 50 | 50 100 240 400 400 400 235 50 Average Speed 290 | 88 216 240 485 400 400 235 226 Slowest Speed 880 | 100 700 240 880 400 400 235 235 Overloaded Moves . | . . . . . . . . Propulsion Burnouts . | . . . . . . . . Robots Hopped . | . . . . . . . . Potential Cave-ins 8 | . . . . . . . 8 Cave-ins Triggered 1 | . . . . . . . 1 Exploration Rate (%) 49 | 3 89 5 30 84 59 93 32 Regions Visited 7 Branch Regions 4 Pre-discovered Areas 1 | . . . . 1 . . . Known Exits Taken 4 | . . . 1 1 1 1 . Unknown Exits Taken 3 | 1 1 1 . . . . . Scrap Searched 2 | . . . . 1 . 1 . Spaces Dug 73 | . . . . . . . 73 Terrain Destroyed 102 | . 2 . . . . . 100 Melee 19 | . . . . . . . 19 Projectile 3 | . . . . . . . 3 AOE 80 | . 2 . . . . . 78 Terrain Rammed . | . . . . . . . . Walls Destroyed . | . . . . . . . . Machines Disabled . | . . . . . . . . Actions | -11 -10 -10 -9 -9 -9 -8 -8 --------- Run | Yrd Mat Min Mat Min Exi Min Mat Total 3886 | 57 751 16 411 379 222 1209 841 Wait 921 | . 101 . 49 24 . 394 353 Move 2633 | 42 556 14 294 338 220 778 391 Hop . | . . . . . . . . Pick Up 86 | 10 28 . 19 3 1 6 19 Fast Attach 4 | . 3 . . . . . 1 Attach 35 | 5 5 . 8 2 . 6 9 Detach . | . . . . . . . . Swap 22 | . 3 2 1 2 . . 14 Drop 31 | . 12 . . 1 1 . 17 Fire 135 | . 43 . 40 9 . 25 18 Melee 19 | . . . . . . . 19 Ram . | . . . . . . . . Kick . | . . . . . . . . Crush . | . . . . . . . . Escape Stasis . | . . . . . . . . Rewire . | . . . . . . . . Trap . | . . . . . . . . Miscellaneous . | . . . . . . . . Route ------- -11/Scrapyard -10/Materials (discovered 4 exits: *Mat x3 / [*Min]) -10/Mines -9/Materials (discovered 2 exits: *Mat / *Min) -9/Mines (discovered 3 exits: *Mat x2 / *Exi) -9/Exiles -8/Mines -8/Materials (discovered 1 exit: [*Fac]) History --------- Turn | Location | Event 2 | -11/Scrapyard | Met Revision 17 11 | -11/Scrapyard | Discovered new exit (range 16) 54 | -11/Scrapyard | Entered Materials 302 | -10/Materials | Build established: Mutant 302 | -10/Materials | Discovered new exit (range 15) 733 | -10/Materials | Discovered new exit (range 16) 941 | -10/Materials | Discovered new exit (range 14) 1479 | -10/Materials | Discovered new exit (range 8) 1527 | -10/Materials | Entered Mines 1552 | -10/Mines | Discovered new exit (range 5) 1564 | -10/Mines | Entered Materials 1564 | -9/Materials | Evolved 2 slots: Utility x2 1851 | -9/Materials | Build established: Hauler-Mutant 2234 | -9/Materials | Discovered new exit (range 7) 2818 | -9/Materials | Lost 3 parts (1n2w) 3005 | -9/Materials | Discovered new exit (range 9) 3189 | -9/Materials | Identified exit to Mines 3189 | -9/Materials | Entered Mines 3622 | -9/Mines | Discovered new exit (range 13) 4213 | -9/Mines | Discovered new exit (range 4) 4218 | -9/Mines | Learned location of Storage (-8) 4221 | -9/Mines | Identified exit to Materials 4581 | -9/Mines | Deemed a non-threat by the Exiles lab entrance 4585 | -9/Mines | Discovered new exit (range 5) 4597 | -9/Mines | Identified exit to Exiles 4601 | -9/Mines | Entered Exiles 4721 | -9/Exiles | Met 8R-AWN 4793 | -9/Exiles | Met EX-HEX 4897 | -9/Exiles | Met EX-BIN 4953 | -9/Exiles | Aligned with FarCom system 4957 | -9/Exiles | Given EX-Vault access code 5057 | -9/Exiles | Opened EX-Vault 5086 | -9/Exiles | Found 0b10 Alert Chip 5159 | -9/Exiles | Warned to stay clear of 0b10 Research branches 5275 | -9/Exiles | Met EX-DEC 5415 | -9/Exiles | Discovered new exit (range 10) 5459 | -9/Exiles | Identified exit to Mines 5483 | -9/Exiles | Left Exiles lab with 0b10 Alert Chip 5483 | -9/Exiles | Entered Mines 5502 | -8/Mines | Core integrity fell below 50% 5558 | -8/Mines | Lost 7 parts (1p2n4w) 7727 | -8/Mines | Discovered exit to Materials (range 8) 7789 | -8/Mines | Entered Materials 7789 | -8/Materials | Evolved 2 slots: Propulsion x1, Utility x1 8367 | -8/Materials | Crushed by falling debris 9130 | -8/Materials | Discovered new exit (range 9) 9176 | -8/Materials | Released all parts (6) 9177 | -8/Materials | Core integrity fell below 50% 9185 | -8/Materials | Core integrity fell below 20% 9188 | -8/Materials | Destroyed by G-47 Trooper with Particle Gun Last Messages --------------- dispatching reinforcements to area. 09166_ Knocked back. 09167_ Y-45 Defender emerges from the garrison. 09169_ The unstable cave ceiling collapses. 09171_ Slug penetrates Earth. 09171_ Flak Cannon destroyed. 09176_ Released Mic. Nuclear Core. 09176_ Released 0b10 Alert Chip. 09176_ Released Imp. Targeting Computer. 09176_ Released Cargo Storage Unit. 09176_ Released Signal Interpreter. 09176_ Released Plasma Cannon. 09176_ Acquired 8 matter. 09179_ Acquired 2 matter. 09180_ EM Shotgun destroyed. 09181_ Acquired 13 matter. 09184_ Acquired Cargo Storage Unit. 09184_ ECM Suite destroyed. 09187_ Knocked back. 09187_ Critical hit (Burn: +37). Map ----- +----------------------------------------------------+ | ?????????????????????#/] #########????# / | | ?????????????????????#####????????????# | | ????????????????????##########????????# ##### | | ????????????????????# #????????## ####### | | ????????????????????# """ #?????????# # !!! | | ????????????????????# """ #?????????# + !!! | | ????????????????????# """ #?????????# # !! | | ???????????????? ? # #?????????# # | | ??????????????? # " #?????????# # ! | | ???????????????? #####?????# ##"#### | | ???????????????? ! # # ###???# ##"#### | | ????????????????? %= ; #???# # | | ???????????????????## = ;;;;;" #???# # | | ????????????????????# g ; #???# # | | ????????????????????# ! g #???# # | | ????????????????????# # ###?# + | | ?????????????????#### ! ### # | | ??????????????####;#T; %%!!![! ## ####### | | ????????????? ! !% *!! / #?# | | ????????????? % *%!] ]* */ ### | | ??????????????? """%% %!*!!; ## | | ????????????????#] "G%[gg %!!! ; ############## | | ????????????????# """Y= ; ##???????????# | | ????????????????# ; #??????????## | | ????????????????# ! ! ;;;#####??????????#T | | ????????????????# H @ ##### #?????????????## | | ????????????????# < ;;+######????##??????????????# | | ????????????????# # ???????????????????????##### | | ????????????????###?#????????????????????????#/ ! | | ?????????????????????????????????????????????#/ ] | | ?????????????????????????????????????????????#]* | | ?????????????????????????????????????????????# ! | | ?????????????????????????????????????????????#][ | | ?????????????????????????????????????????????#! # | | ?????????????????????????????????????????????##### | | ?????????????????????????????????????????????????? | | ?????????????????????????????????????????????????? | | ?????????????????????????????????????????????????? | | | | | | | | | | | | | | | | | | | | | | | | | +----------------------------------------------------+ Best States ------------- Heat Dissipation 31 Energy Generation 15 Energy Capacity 265 Matter Stores 300 Matter Capacity 300 Sight Range 16 Robot Scan Range 14 Terrain Scan Density 10 Evasion (%) 50 Targeting Accuracy 6 Recoil Reduction 2 Item Schematics ----------------- None Robot Schematics ------------------ None Fabricated ------------ Nothing Repaired ---------- Nothing Alien Tech Used ----------------- None Achievements -------------- None Challenges ------------ None Game ------ Seed LinearMetaLog Manual? 0 Play Time 00:44:42 Cumulative 63.5 hours Start 2025.08.01 @ 11:58:27 End 2025.08.01 @ 13:27:23 Sessions 1 Manual Loads 0 Difficulty Rogue Special Mode None Game No. 121 Rogue 121 Adventurer 0 Explorer 0 Win Type - Total 0 Types 0/0/0/0/0/0/0/0/0/0 Lore% 14 Gallery% 36 Achievement% 29 Wizard Run 0 Options --------- Layout 1 ASCII 0 Keyboard 0 Movement Mouse Keybinds 0 Fullscreen 2 Font 32/SmallcapsGlow Map View 50x35 Zoom Use 0% Tactical HUD 1 Map Filters NONE Filters NONE Steam 1 RUN: 38bd3050-783c-4c1b-a512-dcad427eefdd